[Event "Live Chess"]
[Site "Chess.com"]
[Date "2023.05.20"]
[Round "-"]
[White "Yehor20132013"]
[Black "Mikhail_Golubev"]
[Result "0-1"]
[WhiteElo "560"]
[BlackElo "2541"]
[TimeControl "300"]
[EndTime "10:39:25 PDT"]
[Termination "Mikhail_Golubev won by checkmate"]

1. e4 {[%clk 0:04:57.2]} 1... d6 {[%clk 0:04:57.7]} 2. d4 {[%clk 0:04:55.3]}
2... Nd7 {[%clk 0:04:56.8]} 3. Bb5 {[%clk 0:04:52.9]} 3... c6 {[%clk 0:04:54.2]}
4. Bc4 {[%clk 0:04:48.5]} 4... Ngf6 {[%clk 0:04:49.5]} 5. e5 {[%clk 0:04:46.7]}
5... dxe5 {[%clk 0:04:47.7]} 6. Nf3 {[%clk 0:04:34.7]} 6... exd4 {[%clk
0:04:31.7]} 7. Nxd4 {[%clk 0:04:27.1]} 7... Nb6 {[%clk 0:04:21.6]} 8. O-O {[%clk
0:04:20.4]} 8... Nxc4 {[%clk 0:04:16.4]} 9. Qd3 {[%clk 0:04:16.3]} 9... Nb6
{[%clk 0:04:10.5]} 10. Bg5 {[%clk 0:04:10.3]} 10... e6 {[%clk 0:04:04.5]} 11.
Bxf6 {[%clk 0:04:08.1]} 11... gxf6 {[%clk 0:03:57.5]} 12. Qc3 {[%clk 0:04:03.8]}
12... Nd5 {[%clk 0:03:54.8]} 13. Qa5 {[%clk 0:03:47.1]} 13... Qxa5 {[%clk
0:03:52.7]} 14. Nb5 {[%clk 0:03:23.2]} 14... cxb5 {[%clk 0:03:49.5]} 15. Rd1
{[%clk 0:03:19.3]} 15... Rg8 {[%clk 0:03:48.1]} 16. Rd3 {[%clk 0:03:17.7]} 16...
Qe1# {[%clk 0:03:46.6]} 0-1

[Event "Live Chess"]
[Site "Chess.com"]
[Date "2023.05.20"]
[Round "-"]
[White "AttackingSnowLeopard"]
[Black "OceanFloater"]
[Result "1-0"]
[WhiteElo "2070"]
[BlackElo "988"]
[TimeControl "300"]
[EndTime "10:39:33 PDT"]
[Termination "AttackingSnowLeopard won by checkmate"]

1. d4 {[%clk 0:04:57.8]} 1... c6 {[%clk 0:04:59.3]} 2. c4 {[%clk 0:04:53.6]}
2... d5 {[%clk 0:04:58.8]} 3. cxd5 {[%clk 0:04:52.5]} 3... cxd5 {[%clk
0:04:58.1]} 4. Nf3 {[%clk 0:04:51.5]} 4... Nf6 {[%clk 0:04:57.7]} 5. Bg5 {[%clk
0:04:50.8]} 5... e6 {[%clk 0:04:56.3]} 6. Nc3 {[%clk 0:04:49.1]} 6... h6 {[%clk
0:04:55.5]} 7. Bxf6 {[%clk 0:04:47.5]} 7... Qxf6 {[%clk 0:04:54.7]} 8. e4 {[%clk
0:04:47]} 8... Bb4 {[%clk 0:04:47.9]} 9. e5 {[%clk 0:04:45.4]} 9... Qf5 {[%clk
0:04:39.6]} 10. Bd3 {[%clk 0:04:43.5]} 10... Qg4 {[%clk 0:04:34]} 11. O-O {[%clk
0:04:42.4]} 11... Nc6 {[%clk 0:04:27.5]} 12. h3 {[%clk 0:04:41.5]} 12... Qh5
{[%clk 0:04:20.7]} 13. Nb5 {[%clk 0:04:34.4]} 13... Kd7 {[%clk 0:04:09.3]} 14.
a3 {[%clk 0:04:30.6]} 14... Ba5 {[%clk 0:04:05.4]} 15. b4 {[%clk 0:04:28.1]}
15... Bb6 {[%clk 0:04:03]} 16. Rc1 {[%clk 0:04:27.4]} 16... f6 {[%clk
0:03:57.6]} 17. exf6 {[%clk 0:04:22]} 17... gxf6 {[%clk 0:03:56.8]} 18. Ne5+
{[%clk 0:04:20.2]} 18... fxe5 {[%clk 0:03:55.7]} 19. Qxh5 {[%clk 0:04:19.5]}
19... e4 {[%clk 0:03:46.2]} 20. Qf7+ {[%clk 0:04:17.8]} 20... Ne7 {[%clk
0:03:43.3]} 21. Bxe4 {[%clk 0:04:16.7]} 21... dxe4 {[%clk 0:03:41.4]} 22. d5
{[%clk 0:04:16.1]} 22... exd5 {[%clk 0:03:24]} 23. Rfd1 {[%clk 0:04:14.4]} 23...
Kd8 {[%clk 0:03:17.1]} 24. Rxd5+ {[%clk 0:04:10.4]} 24... Nxd5 {[%clk
0:03:15.6]} 25. Qxd5+ {[%clk 0:04:10.3]} 25... Bd7 {[%clk 0:03:13.8]} 26. Nd6
{[%clk 0:04:07.7]} 26... Rc8 {[%clk 0:03:05.4]} 27. Rxc8+ {[%clk 0:04:03.8]}
27... Bxc8 {[%clk 0:03:02.6]} 28. Nf7+ {[%clk 0:04:03.4]} 28... Ke8 {[%clk
0:03:00]} 29. Nxh8 {[%clk 0:04:03]} 29... e3 {[%clk 0:02:55.8]} 30. fxe3 {[%clk
0:04:00]} 30... Bxe3+ {[%clk 0:02:54.5]} 31. Kh1 {[%clk 0:03:59.6]} 31... Bc1
{[%clk 0:02:49]} 32. Qf7+ {[%clk 0:03:57.5]} 32... Kd8 {[%clk 0:02:47.2]} 33.
Ng6 {[%clk 0:03:56.9]} 33... Bxa3 {[%clk 0:02:45.5]} 34. Qe7# {[%clk 0:03:55.6]}
1-0

[Event "Live Chess"]
[Site "Chess.com"]
[Date "2023.05.20"]
[Round "-"]
[White "Ayush_prahlad_Gupta"]
[Black "McSlash1"]
[Result "0-1"]
[WhiteElo "1793"]
[BlackElo "2069"]
[TimeControl "300"]
[EndTime "10:39:34 PDT"]
[Termination "McSlash1 won by checkmate"]

1. e4 {[%clk 0:04:56.2]} 1... c5 {[%clk 0:04:59.5]} 2. Nc3 {[%clk 0:04:55.4]}
2... Nc6 {[%clk 0:04:58.6]} 3. Bc4 {[%clk 0:04:54.9]} 3... g6 {[%clk 0:04:58.2]}
4. d3 {[%clk 0:04:54.2]} 4... Bg7 {[%clk 0:04:57]} 5. h4 {[%clk 0:04:45.3]} 5...
e6 {[%clk 0:04:55.6]} 6. Nf3 {[%clk 0:04:44.3]} 6... Nge7 {[%clk 0:04:52]} 7. h5
{[%clk 0:04:43.2]} 7... d5 {[%clk 0:04:50.2]} 8. exd5 {[%clk 0:04:39]} 8... exd5
{[%clk 0:04:50.1]} 9. Bb5 {[%clk 0:04:36.1]} 9... O-O {[%clk 0:04:49.5]} 10.
hxg6 {[%clk 0:04:34.7]} 10... hxg6 {[%clk 0:04:49.4]} 11. Ng5 {[%clk 0:04:32.3]}
11... Nf5 {[%clk 0:04:45.7]} 12. Qf3 {[%clk 0:04:28.9]} 12... d4 {[%clk
0:04:42.5]} 13. Nce4 {[%clk 0:04:26.6]} 13... Qa5+ {[%clk 0:04:37.9]} 14. Bd2
{[%clk 0:04:24]} 14... Qxb5 {[%clk 0:04:37.4]} 15. Qf4 {[%clk 0:04:13.4]} 15...
Nb4 {[%clk 0:04:17.4]} 16. Qh2 {[%clk 0:04:10.5]} 16... Nh6 {[%clk 0:04:09.8]}
17. Nf6+ {[%clk 0:04:05.6]} 17... Bxf6 {[%clk 0:03:59.7]} 18. Qxh6 {[%clk
0:04:02.4]} 18... Re8+ {[%clk 0:03:54.5]} 19. Be3 {[%clk 0:03:52.7]} 19... Nxc2+
{[%clk 0:03:44.7]} 20. Kd2 {[%clk 0:03:44.9]} 20... dxe3+ {[%clk 0:03:43.8]} 21.
Kxc2 {[%clk 0:03:42.6]} 21... Qxb2+ {[%clk 0:03:40.6]} 22. Kd1 {[%clk
0:03:40.4]} 22... Qd2# {[%clk 0:03:40]} 0-1

[Event "Live Chess"]
[Site "Chess.com"]
[Date "2023.05.20"]
[Round "-"]
[White "KeithArkell"]
[Black "viktorskliarov"]
[Result "1/2-1/2"]
[WhiteElo "2612"]
[BlackElo "2649"]
[TimeControl "300"]
[EndTime "10:39:36 PDT"]
[Termination "Game drawn by repetition"]

1. d4 {[%clk 0:04:56.3]} 1... Nf6 {[%clk 0:04:58.2]} 2. Nf3 {[%clk 0:04:55]}
2... g6 {[%clk 0:04:56.8]} 3. c4 {[%clk 0:04:53.6]} 3... Bg7 {[%clk 0:04:55.6]}
4. Nc3 {[%clk 0:04:52.5]} 4... O-O {[%clk 0:04:54.1]} 5. g3 {[%clk 0:04:51.9]}
5... d5 {[%clk 0:04:47.6]} 6. cxd5 {[%clk 0:04:50.5]} 6... Nxd5 {[%clk
0:04:46.8]} 7. Bg2 {[%clk 0:04:49.6]} 7... c5 {[%clk 0:04:43.9]} 8. O-O {[%clk
0:04:47.9]} 8... cxd4 {[%clk 0:04:30.9]} 9. Nxd4 {[%clk 0:04:45.8]} 9... Nxc3
{[%clk 0:04:29.8]} 10. bxc3 {[%clk 0:04:45.7]} 10... a6 {[%clk 0:04:18.2]} 11.
Ba3 {[%clk 0:04:39.9]} 11... Qc7 {[%clk 0:04:09.8]} 12. Qb3 {[%clk 0:04:38.6]}
12... Nc6 {[%clk 0:03:55.5]} 13. Nxc6 {[%clk 0:04:34.6]} 13... bxc6 {[%clk
0:03:54.3]} 14. Qc4 {[%clk 0:04:32.5]} 14... Be6 {[%clk 0:03:48.6]} 15. Qxc6
{[%clk 0:04:30.4]} 15... Qxc6 {[%clk 0:03:47.5]} 16. Bxc6 {[%clk 0:04:29.2]}
16... Rac8 {[%clk 0:03:46.4]} 17. Bb7 {[%clk 0:04:27.9]} 17... Rxc3 {[%clk
0:03:41.2]} 18. Bxe7 {[%clk 0:04:25.9]} 18... Re8 {[%clk 0:03:39.6]} 19. Bb4
{[%clk 0:04:23.1]} 19... Rc7 {[%clk 0:03:16.2]} 20. Bxa6 {[%clk 0:04:16.8]}
20... Bxa1 {[%clk 0:03:14.9]} 21. Rxa1 {[%clk 0:04:13.6]} 21... Ra8 {[%clk
0:03:12.3]} 22. Bd3 {[%clk 0:03:44.7]} 22... Rxa2 {[%clk 0:03:07.9]} 23. Rxa2
{[%clk 0:03:43.4]} 23... Bxa2 {[%clk 0:03:06.8]} 24. Kg2 {[%clk 0:03:24.5]}
24... Bc4 {[%clk 0:03:02.8]} 25. Bxc4 {[%clk 0:03:21.6]} 25... Rxc4 {[%clk
0:03:01.3]} 26. Bd6 {[%clk 0:03:20.7]} 26... f5 {[%clk 0:02:58.2]} 27. h3 {[%clk
0:03:13.1]} 27... Kf7 {[%clk 0:02:57]} 28. f3 {[%clk 0:03:10.9]} 28... Ke6
{[%clk 0:02:55.9]} 29. Bf4 {[%clk 0:03:09.4]} 29... Rc2 {[%clk 0:02:53.6]} 30.
Kf2 {[%clk 0:03:08.4]} 30... Kd5 {[%clk 0:02:51.5]} 31. Ke3 {[%clk 0:03:07.5]}
31... Kc4 {[%clk 0:02:40.7]} 32. g4 {[%clk 0:03:03.9]} 32... Ra2 {[%clk
0:02:33.6]} 33. gxf5 {[%clk 0:03:00.2]} 33... gxf5 {[%clk 0:02:33.5]} 34. h4
{[%clk 0:02:56.7]} 34... h5 {[%clk 0:02:28.6]} 35. Bg5 {[%clk 0:02:54.2]} 35...
Kd5 {[%clk 0:02:26.3]} 36. Bf6 {[%clk 0:02:51.1]} 36... Ke6 {[%clk 0:02:23.7]}
37. Bg5 {[%clk 0:02:49.2]} 37... Kd5 {[%clk 0:02:22.5]} 38. Bf6 {[%clk 0:02:48]}
38... Ke6 {[%clk 0:02:21.7]} 39. Bg5 {[%clk 0:02:47.3]} 39... Kd5 {[%clk
0:02:20.3]} 1/2-1/2

[Event "Live Chess"]
[Site "Chess.com"]
[Date "2023.05.20"]
[Round "-"]
[White "booktrunk"]
[Black "CheckString"]
[Result "0-1"]
[WhiteElo "1347"]
[BlackElo "1259"]
[TimeControl "300"]
[EndTime "10:39:39 PDT"]
[Termination "CheckString won by resignation"]

1. d4 {[%clk 0:04:59.1]} 1... c6 {[%clk 0:04:56.5]} 2. Bf4 {[%clk 0:04:56.8]}
2... d5 {[%clk 0:04:54.3]} 3. Nf3 {[%clk 0:04:54.5]} 3... Bg4 {[%clk 0:04:48]}
4. h3 {[%clk 0:04:52.9]} 4... Bxf3 {[%clk 0:04:46.7]} 5. exf3 {[%clk 0:04:50.3]}
5... Qb6 {[%clk 0:04:44.7]} 6. b3 {[%clk 0:04:46.8]} 6... Nd7 {[%clk 0:04:43.9]}
7. Bd3 {[%clk 0:04:44.8]} 7... Qxd4 {[%clk 0:04:34.9]} 8. c3 {[%clk 0:04:36.7]}
8... Qxf4 {[%clk 0:04:32.2]} 9. Nd2 {[%clk 0:04:33.2]} 9... Ngf6 {[%clk
0:04:23.3]} 10. g3 {[%clk 0:04:29.8]} 10... Qd6 {[%clk 0:04:18.5]} 11. O-O
{[%clk 0:04:23.6]} 11... g6 {[%clk 0:04:14.9]} 12. c4 {[%clk 0:04:20.4]} 12...
Ne5 {[%clk 0:04:04.9]} 13. Bc2 {[%clk 0:04:15.4]} 13... Bg7 {[%clk 0:03:55.8]}
14. f4 {[%clk 0:04:11.5]} 14... Ned7 {[%clk 0:03:46.1]} 15. cxd5 {[%clk
0:04:08.4]} 15... Nxd5 {[%clk 0:03:43.5]} 16. Qe2 {[%clk 0:04:02.2]} 16... Bxa1
{[%clk 0:03:39.2]} 17. Rxa1 {[%clk 0:04:01]} 17... O-O {[%clk 0:03:30.9]} 18. f5
{[%clk 0:03:59.2]} 18... gxf5 {[%clk 0:03:17]} 19. Re1 {[%clk 0:03:50.1]} 19...
e6 {[%clk 0:03:00.3]} 20. Qh5 {[%clk 0:03:45.9]} 20... N5f6 {[%clk 0:02:44.9]}
21. Qg5+ {[%clk 0:03:43.7]} 21... Kh8 {[%clk 0:02:42]} 22. Nf3 {[%clk
0:03:42.5]} 22... Qb4 {[%clk 0:02:25]} 23. Ne5 {[%clk 0:03:37.9]} 23... Qxe1+
{[%clk 0:02:23.1]} 24. Kg2 {[%clk 0:03:36]} 24... Qxe5 {[%clk 0:02:21]} 25. f4
{[%clk 0:03:33.9]} 25... Qd5+ {[%clk 0:02:18.3]} 0-1

[Event "Live Chess"]
[Site "Chess.com"]
[Date "2023.05.20"]
[Round "-"]
[White "ossie57"]
[Black "JoeyCage"]
[Result "0-1"]
[WhiteElo "1869"]
[BlackElo "2296"]
[TimeControl "300"]
[EndTime "10:39:41 PDT"]
[Termination "JoeyCage won on time"]

1. d4 {[%clk 0:04:58.5]} 1... g6 {[%clk 0:04:57.6]} 2. Nc3 {[%clk 0:04:57.4]}
2... Bg7 {[%clk 0:04:56.6]} 3. Bf4 {[%clk 0:04:56.4]} 3... d6 {[%clk 0:04:55.8]}
4. e4 {[%clk 0:04:41.1]} 4... Nd7 {[%clk 0:04:07.5]} 5. Nf3 {[%clk 0:04:36.9]}
5... Ngf6 {[%clk 0:04:05.3]} 6. Qd2 {[%clk 0:04:33.3]} 6... O-O {[%clk 0:04:04]}
7. h4 {[%clk 0:04:31.6]} 7... h5 {[%clk 0:03:59.1]} 8. O-O-O {[%clk 0:04:26.2]}
8... Ng4 {[%clk 0:03:58]} 9. Nh2 {[%clk 0:04:09.3]} 9... e5 {[%clk 0:03:55]} 10.
dxe5 {[%clk 0:04:03]} 10... dxe5 {[%clk 0:03:53]} 11. Bg5 {[%clk 0:03:49.8]}
11... f6 {[%clk 0:03:43.5]} 12. Nxg4 {[%clk 0:03:45.2]} 12... fxg5 {[%clk
0:03:42]} 13. Qd5+ {[%clk 0:03:36]} 13... Kh7 {[%clk 0:03:40]} 14. hxg5 {[%clk
0:03:32.9]} 14... Qxg5+ {[%clk 0:03:36.1]} 15. Ne3 {[%clk 0:03:29.7]} 15... Nb6
{[%clk 0:03:31.1]} 16. Qc5 {[%clk 0:03:12.2]} 16... c6 {[%clk 0:03:25.4]} 17.
Be2 {[%clk 0:03:03.3]} 17... Be6 {[%clk 0:03:22.5]} 18. g4 {[%clk 0:03:00.9]}
18... h4 {[%clk 0:03:20.1]} 19. Kb1 {[%clk 0:02:50.6]} 19... Kg8 {[%clk
0:03:18.1]} 20. Ng2 {[%clk 0:02:06.8]} 20... Rad8 {[%clk 0:02:59.4]} 21. Rxd8
{[%clk 0:02:00.8]} 21... Rxd8 {[%clk 0:02:56.9]} 22. Nxh4 {[%clk 0:01:57.5]}
22... Bxg4 {[%clk 0:02:33]} 23. Bxg4 {[%clk 0:01:27.4]} 23... Qxg4 {[%clk
0:02:30.5]} 24. Qe7 {[%clk 0:01:22.3]} 24... Qd7 {[%clk 0:02:07.3]} 25. Nxg6
{[%clk 0:01:12.9]} 25... Qxe7 {[%clk 0:02:05.5]} 26. Nxe7+ {[%clk 0:01:12]}
26... Kf7 {[%clk 0:02:04.6]} 27. Nf5 {[%clk 0:01:11.3]} 27... Kf6 {[%clk
0:01:49]} 28. Nxg7 {[%clk 0:01:07.7]} 28... Kxg7 {[%clk 0:01:47.9]} 29. Kc1
{[%clk 0:01:04.1]} 29... Nc4 {[%clk 0:01:44.7]} 30. Rd1 {[%clk 0:00:53.2]} 30...
Rxd1+ {[%clk 0:01:38.8]} 31. Kxd1 {[%clk 0:00:52.7]} 31... Nxb2+ {[%clk
0:01:37.3]} 32. Ke2 {[%clk 0:00:48]} 32... Nc4 {[%clk 0:01:37.2]} 33. Na4 {[%clk
0:00:35.3]} 33... b6 {[%clk 0:01:34.8]} 34. Kd3 {[%clk 0:00:27]} 34... Nd6
{[%clk 0:01:33.4]} 35. Ke3 {[%clk 0:00:22.5]} 35... Kf6 {[%clk 0:01:32.2]} 36.
Nc3 {[%clk 0:00:21.7]} 36... Nc4+ {[%clk 0:01:29.3]} 37. Kd3 {[%clk 0:00:16.8]}
37... b5 {[%clk 0:01:28.1]} 38. a4 {[%clk 0:00:12.2]} 38... Nb2+ {[%clk
0:01:25.1]} 39. Ke3 {[%clk 0:00:09.1]} 39... Nxa4 {[%clk 0:01:23.5]} 40. Ne2
{[%clk 0:00:07.5]} 40... Nc5 {[%clk 0:01:19.4]} 41. f4 {[%clk 0:00:07.4]} 41...
exf4+ {[%clk 0:01:13.1]} 42. Nxf4 {[%clk 0:00:07.3]} 42... a5 {[%clk 0:01:10.3]}
43. Ne2 {[%clk 0:00:06.5]} 43... Ne6 {[%clk 0:01:08.5]} 44. Nc3 {[%clk
0:00:05.6]} 44... Ke5 {[%clk 0:01:06.4]} 45. Nb1 {[%clk 0:00:03.9]} 45... b4
{[%clk 0:01:04.5]} 46. c3 {[%clk 0:00:02.7]} 46... c5 {[%clk 0:00:59.9]} 47.
cxb4 {[%clk 0:00:02]} 47... axb4 {[%clk 0:00:57.1]} 48. Kd3 {[%clk 0:00:01.9]}
48... Kd6 {[%clk 0:00:51.5]} 49. Kc4 {[%clk 0:00:01.8]} 49... Nf4 {[%clk
0:00:44.7]} 50. Nd2 {[%clk 0:00:01.7]} 50... Ng6 {[%clk 0:00:43.1]} 51. Nb3
{[%clk 0:00:01.6]} 51... Ne5+ {[%clk 0:00:41.7]} 52. Kb5 {[%clk 0:00:00.4]}
52... Nd7 {[%clk 0:00:40.3]} 0-1

[Event "Live Chess"]
[Site "Chess.com"]
[Date "2023.05.20"]
[Round "-"]
[White "YrrriKharkiv"]
[Black "f4nomore"]
[Result "1-0"]
[WhiteElo "2038"]
[BlackElo "1375"]
[TimeControl "300"]
[EndTime "10:39:48 PDT"]
[Termination "YrrriKharkiv won on time"]

1. d4 {[%clk 0:04:55]} 1... g6 {[%clk 0:04:59.9]} 2. c4 {[%clk 0:04:53.6]} 2...
Bg7 {[%clk 0:04:59.8]} 3. Nc3 {[%clk 0:04:52.8]} 3... d6 {[%clk 0:04:59.7]} 4.
h3 {[%clk 0:04:51.1]} 4... a6 {[%clk 0:04:58.6]} 5. e4 {[%clk 0:04:50.6]} 5...
Nd7 {[%clk 0:04:57.1]} 6. Be2 {[%clk 0:04:50.2]} 6... b6 {[%clk 0:04:56]} 7. Nf3
{[%clk 0:04:47.2]} 7... Bb7 {[%clk 0:04:55]} 8. Be3 {[%clk 0:04:46]} 8... Ngf6
{[%clk 0:04:53]} 9. Qc2 {[%clk 0:04:43.5]} 9... O-O {[%clk 0:04:50.6]} 10. Rd1
{[%clk 0:04:41.7]} 10... c5 {[%clk 0:04:49.2]} 11. d5 {[%clk 0:04:40.5]} 11...
b5 {[%clk 0:04:29.9]} 12. cxb5 {[%clk 0:04:35.4]} 12... axb5 {[%clk 0:04:28.1]}
13. Bxb5 {[%clk 0:04:35.1]} 13... Ba6 {[%clk 0:04:10.4]} 14. Bxa6 {[%clk
0:04:30.3]} 14... Rxa6 {[%clk 0:04:08.7]} 15. O-O {[%clk 0:04:29.9]} 15... Nb6
{[%clk 0:03:49]} 16. Nd2 {[%clk 0:04:24]} 16... Qa8 {[%clk 0:03:29]} 17. Qd3
{[%clk 0:03:49.6]} 17... Nfd7 {[%clk 0:03:13.9]} 18. f4 {[%clk 0:03:45.3]} 18...
Na4 {[%clk 0:03:04.7]} 19. Rb1 {[%clk 0:03:20.3]} 19... Nxc3 {[%clk 0:02:59.7]}
20. bxc3 {[%clk 0:03:17.1]} 20... Ra3 {[%clk 0:02:47.5]} 21. Rfc1 {[%clk
0:03:10.4]} 21... Qa7 {[%clk 0:02:26.9]} 22. Nc4 {[%clk 0:02:50]} 22... Rxa2
{[%clk 0:02:18.7]} 23. Rc2 {[%clk 0:02:49.3]} 23... Rxc2 {[%clk 0:02:06.9]} 24.
Qxc2 {[%clk 0:02:47.9]} 24... Ra8 {[%clk 0:02:02.2]} 25. Bd2 {[%clk 0:02:33.2]}
25... Qa2 {[%clk 0:01:51.1]} 26. Ne3 {[%clk 0:02:29.7]} 26... Qxc2 {[%clk
0:01:43.7]} 27. Nxc2 {[%clk 0:02:28.8]} 27... Nf6 {[%clk 0:01:41.3]} 28. e5
{[%clk 0:02:17.3]} 28... Nxd5 {[%clk 0:01:35.8]} 29. exd6 {[%clk 0:02:16]} 29...
exd6 {[%clk 0:01:34.2]} 30. c4 {[%clk 0:02:10.3]} 30... Nc3 {[%clk 0:01:26.9]}
31. Bxc3 {[%clk 0:02:00]} 31... Bxc3 {[%clk 0:01:24.1]} 32. Ne1 {[%clk
0:01:55.7]} 32... Ra2 {[%clk 0:01:10.8]} 33. Rd1 {[%clk 0:01:46.3]} 33... Bd4+
{[%clk 0:01:06.9]} 34. Kh2 {[%clk 0:01:41.2]} 34... Rf2 {[%clk 0:01:00.8]} 35.
Nf3 {[%clk 0:01:39.1]} 35... Rc2 {[%clk 0:00:41.7]} 36. Nxd4 {[%clk 0:01:36.3]}
36... cxd4 {[%clk 0:00:40.2]} 37. Rxd4 {[%clk 0:01:35.4]} 37... Kg7 {[%clk
0:00:39.4]} 38. h4 {[%clk 0:01:26.1]} 38... Kf6 {[%clk 0:00:38.4]} 39. Rxd6+
{[%clk 0:01:21.7]} 39... Ke7 {[%clk 0:00:31.9]} 40. Rc6 {[%clk 0:01:19.6]} 40...
Kd7 {[%clk 0:00:29.8]} 41. Rc5 {[%clk 0:01:18.5]} 41... Kd6 {[%clk 0:00:28.1]}
42. Rd5+ {[%clk 0:01:17.5]} 42... Kc6 {[%clk 0:00:25.9]} 43. Rd4 {[%clk
0:01:16.6]} 43... Kc5 {[%clk 0:00:23.4]} 44. Rd7 {[%clk 0:01:15.7]} 44... Rxc4
{[%clk 0:00:17.5]} 45. Rxf7 {[%clk 0:01:14.2]} 45... Kd5 {[%clk 0:00:14.8]} 46.
Kh3 {[%clk 0:01:11.7]} 46... Ke6 {[%clk 0:00:11.4]} 47. Rxh7 {[%clk 0:01:09.6]}
47... Rxf4 {[%clk 0:00:09.5]} 48. Ra7 {[%clk 0:01:09.3]} 1-0

[Event "Live Chess"]
[Site "Chess.com"]
[Date "2023.05.20"]
[Round "-"]
[White "flyingpuffins"]
[Black "profpirate4"]
[Result "1-0"]
[WhiteElo "1976"]
[BlackElo "1018"]
[TimeControl "300"]
[EndTime "10:39:54 PDT"]
[Termination "flyingpuffins won by resignation"]

1. e4 {[%clk 0:04:58.4]} 1... c5 {[%clk 0:04:59.1]} 2. Nf3 {[%clk 0:04:57]} 2...
d6 {[%clk 0:04:58.5]} 3. d4 {[%clk 0:04:55.9]} 3... cxd4 {[%clk 0:04:57.8]} 4.
Nxd4 {[%clk 0:04:55.8]} 4... Nf6 {[%clk 0:04:57.2]} 5. Nc3 {[%clk 0:04:55.1]}
5... a6 {[%clk 0:04:56.4]} 6. Bc4 {[%clk 0:04:52.6]} 6... e6 {[%clk 0:04:54.7]}
7. Bb3 {[%clk 0:04:52.1]} 7... Nc6 {[%clk 0:04:53.5]} 8. O-O {[%clk 0:04:50.1]}
8... e5 {[%clk 0:04:46.1]} 9. Nde2 {[%clk 0:04:35.4]} 9... b5 {[%clk 0:04:38.3]}
10. Bg5 {[%clk 0:04:33.4]} 10... b4 {[%clk 0:04:35.2]} 11. Nd5 {[%clk
0:04:32.7]} 11... Nxd5 {[%clk 0:04:32.3]} 12. Bxd8 {[%clk 0:04:31.2]} 1-0

[Event "Live Chess"]
[Site "Chess.com"]
[Date "2023.05.20"]
[Round "-"]
[White "18Ziyad"]
[Black "WilliamofOrange16th"]
[Result "0-1"]
[WhiteElo "986"]
[BlackElo "1881"]
[TimeControl "300"]
[EndTime "10:39:58 PDT"]
[Termination "WilliamofOrange16th won by resignation"]

1. e4 {[%clk 0:04:58.1]} 1... d5 {[%clk 0:04:59.1]} 2. exd5 {[%clk 0:04:53.1]}
2... Qxd5 {[%clk 0:04:59]} 3. Nc3 {[%clk 0:04:52.1]} 3... Qd8 {[%clk 0:04:57.9]}
4. Nf3 {[%clk 0:04:50.7]} 4... Nf6 {[%clk 0:04:57.1]} 5. d4 {[%clk 0:04:49.4]}
5... c6 {[%clk 0:04:54.9]} 6. Bd3 {[%clk 0:04:47.2]} 6... Bg4 {[%clk 0:04:54]}
7. Bf4 {[%clk 0:04:43.6]} 7... e6 {[%clk 0:04:53.1]} 8. O-O {[%clk 0:04:38.2]}
8... Be7 {[%clk 0:04:49.8]} 9. Bg3 {[%clk 0:04:36.3]} 9... O-O {[%clk
0:04:48.7]} 10. Ne4 {[%clk 0:04:34.1]} 10... Nxe4 {[%clk 0:04:47.2]} 11. Bxe4
{[%clk 0:04:34]} 11... Nd7 {[%clk 0:04:44.6]} 12. c4 {[%clk 0:04:26.8]} 12...
Nf6 {[%clk 0:04:43.6]} 13. Bc2 {[%clk 0:04:19.9]} 13... Qd7 {[%clk 0:04:39.8]}
14. Be5 {[%clk 0:04:12.3]} 14... Rfd8 {[%clk 0:04:36.1]} 15. h3 {[%clk
0:04:09.7]} 15... Bh5 {[%clk 0:04:35]} 16. Qd3 {[%clk 0:03:59.4]} 16... Bg6
{[%clk 0:04:32.9]} 17. Qd2 {[%clk 0:03:57.5]} 17... Bxc2 {[%clk 0:04:31.5]} 18.
Qxc2 {[%clk 0:03:56.4]} 18... c5 {[%clk 0:04:24.5]} 19. Rfd1 {[%clk 0:03:42.2]}
19... cxd4 {[%clk 0:04:23]} 20. Rxd4 {[%clk 0:03:38.3]} 20... Qc6 {[%clk
0:04:21.5]} 21. Rad1 {[%clk 0:03:35.3]} 21... Rxd4 {[%clk 0:04:13.4]} 22. Rxd4
{[%clk 0:03:34.5]} 22... h6 {[%clk 0:04:12]} 23. Qd2 {[%clk 0:03:25.7]} 23...
Rc8 {[%clk 0:04:07.3]} 24. Rd3 {[%clk 0:03:14.1]} 24... Ne4 {[%clk 0:03:21.2]}
25. Qe2 {[%clk 0:02:46.7]} 25... Qxc4 {[%clk 0:03:03.7]} 26. Nd2 {[%clk
0:02:25.6]} 26... Nxd2 {[%clk 0:02:58.2]} 27. Qxd2 {[%clk 0:02:19.4]} 27... Qc1+
{[%clk 0:02:44.3]} 28. Qxc1 {[%clk 0:02:15.3]} 28... Rxc1+ {[%clk 0:02:44.2]}
29. Kh2 {[%clk 0:02:09.3]} 29... Rc2 {[%clk 0:02:32.3]} 30. Rd7 {[%clk
0:02:07.1]} 30... Bc5 {[%clk 0:02:28.1]} 31. Rxb7 {[%clk 0:01:58.2]} 31... Rxf2
{[%clk 0:02:24.9]} 32. Rc7 {[%clk 0:01:49.6]} 32... Bb6 {[%clk 0:02:23.4]} 33.
Rc8+ {[%clk 0:01:40.4]} 33... Kh7 {[%clk 0:02:22.5]} 34. Rf8 {[%clk 0:01:37.4]}
34... f6 {[%clk 0:02:14.8]} 35. Bc3 {[%clk 0:01:33.6]} 35... Kg6 {[%clk
0:02:00.9]} 36. Re8 {[%clk 0:01:30.6]} 36... Re2 {[%clk 0:01:52]} 37. Re7 {[%clk
0:01:28.9]} 37... Bc5 {[%clk 0:01:41.1]} 38. h4 {[%clk 0:01:24.2]} 38... Bxe7
{[%clk 0:01:39.5]} 0-1